bitfinex/quotes_BTCUSD_20241028
["timestamp","ask_amount","ask_price","bid_price","bid_amount"]
[1730074046564,0.39913681,68033.0,68032.0,0.45689852]
[1730074053613,0.47653681,68033.0,68032.0,0.45689852]
[1730074054620,0.72653681,68033.0,68032.0,0.45689852]
[1730074058175,0.7374498,68033.0,68032.0,0.45689852]
[1730074058799,0.7424498,68033.0,68032.0,0.44097]
[1730074059195,0.7424498,68033.0,68032.0,0.45691827]
[1730074059410,0.7424498,68033.0,68032.0,0.44097]
[1730074059617,0.7424498,68033.0,68032.0,0.45691827]
[1730074066552,0.83410448,68033.0,68032.0,0.45691827]
[1730074066878,0.83410448,68033.0,68032.0,0.44097]
[1730074067093,0.83410448,68033.0,68032.0,0.45482748]
[1730074068422,0.94220448,68033.0,68032.0,0.45482748]
[1730074068611,0.98601595,68033.0,68032.0,0.45482748]
[1730074068858,1.03385916,68033.0,68032.0,0.45482748]
[1730074069064,1.03385916,68033.0,68032.0,0.44097]
[1730074069280,0.94420448,68033.0,68032.0,0.44097]
[1730074072233,0.94220448,68033.0,68032.0,0.44097]
[1730074073457,1.00789268,68033.0,68032.0,0.44097]
[1730074075191,1.15839649,68033.0,68032.0,0.44097]
[1730074076065,1.00789268,68033.0,68032.0,0.44097]
[1730074079655,1.00989268,68033.0,68032.0,0.44097]
[1730074079865,1.00789268,68033.0,68032.0,0.44097]
[1730074080125,1.00989268,68033.0,68032.0,0.44097]
[1730074080893,1.00988765,68033.0,68032.0,0.44097]
[1730074081281,1.16039146,68033.0,68032.0,0.44097]
[1730074081488,1.09270829,68033.0,68032.0,0.44097]
[1730074081720,0.94220448,68033.0,68032.0,0.44097]
[1730074082143,1.00789117,68033.0,68032.0,0.44097]
[1730074082514,0.94220448,68033.0,68032.0,0.44097]
[1730074083151,0.94420448,68033.0,68032.0,0.44097]
[1730074084289,0.94220448,68033.0,68032.0,0.44097]
[1730074084434,1.09270829,68033.0,68032.0,0.44097]
[1730074085135,1.09270829,68033.0,68032.0,0.43597]
[1730074085362,0.94220448,68033.0,68032.0,0.43597]
[1730074086354,0.94220448,68033.0,68032.0,0.4498485]
[1730074086695,0.94220448,68033.0,68032.0,0.43597]
[1730074087526,1.02979132,68033.0,68032.0,0.43597]
[1730074089859,0.94220448,68033.0,68032.0,0.43597]
[1730074090065,1.05066184,68033.0,68032.0,0.43597]
[1730074090285,1.05266184,68033.0,68032.0,0.43597]
[1730074090498,1.13824868,68033.0,68032.0,0.43597]
[1730074090705,1.05066184,68033.0,68032.0,0.43597]
[1730074091311,1.13824868,68033.0,68032.0,0.43597]
[1730074091515,1.05066184,68033.0,68032.0,0.43597]
[1730074092867,0.94220448,68033.0,68032.0,0.43597]
[1730074093347,1.02979132,68033.0,68032.0,0.43597]
[1730074095220,0.94220448,68033.0,68032.0,0.43597]
[1730074098397,1.05168804,68033.0,68032.0,0.43597]
[1730074099427,0.94220448,68033.0,68032.0,0.43597]
[1730074099635,1.05175843,68033.0,68032.0,0.43597]
[1730074100072,0.94220448,68033.0,68032.0,0.43597]
[1730074101678,1.09270829,68033.0,68032.0,0.43597]
[1730074101950,1.17843204,68033.0,68032.0,0.41933089]
[1730074102158,1.21728916,68033.0,68032.0,0.3883628]
[1730074102363,1.21728916,68033.0,68032.0,0.37107829]
[1730074103228,1.21728916,68033.0,68032.0,0.18166953]
[1730074103445,1.4518782,68033.0,68032.0,0.10339435]
[1730074103656,0.437822,68017.0,68016.0,0.22068048]
[1730074103864,0.67998049,68017.0,68016.0,0.22068048]
[1730074104064,0.67998049,68017.0,68016.0,0.000831]
[1730074104304,0.78163517,68017.0,68016.0,0.000831]
[1730074104733,0.68998049,68017.0,68016.0,0.000831]
[1730074104938,0.77758817,68017.0,68016.0,0.000831]
[1730074105156,0.93009198,68017.0,68016.0,0.000831]
[1730074105379,0.78363517,68017.0,68016.0,0.000831]
[1730074105599,0.87124285,68017.0,68016.0,0.000831]
[1730074106025,0.77958817,68017.0,68016.0,0.000831]
[1730074106498,0.68998049,68017.0,68016.0,0.000831]
[1730074106708,0.70123611,68017.0,68016.0,0.000831]
[1730074107146,0.70523611,68017.0,68016.0,0.000831]
[1730074107356,0.7927401,68017.0,68016.0,0.000831]
[1730074107559,0.70523611,68017.0,68016.0,0.000831]
[1730074107771,0.70723611,68017.0,68016.0,0.000831]
[1730074108426,0.79471075,68017.0,68016.0,0.000831]
[1730074108659,0.79471075,68017.0,68013.0,1e-06]
[1730074108660,0.117,68014.0,68013.0,1e-06]
[1730074108869,0.81134117,68014.0,68013.0,1e-06]
[1730074109578,0.898774,68014.0,68013.0,1e-06]
[1730074110256,0.899774,68014.0,68013.0,1e-06]
[1730074110476,1.03380335,68014.0,68013.0,1e-06]
[1730074110893,0.94637052,68014.0,68013.0,1e-06]
[1730074113342,0.72068649,68014.0,68013.0,1e-06]
[1730074113554,0.83002258,68014.0,68013.0,1e-06]
[1730074114217,0.36404594,68014.0,68013.0,1e-06]
[1730074114475,0.29853181,68014.0,68013.0,0.09165568]
[1730074114731,0.29853181,68014.0,68013.0,0.17135568]
[1730074114950,0.001,68014.0,68013.0,0.195201]
[1730074115186,0.148028,68014.0,68013.0,0.195201]
[1730074115409,0.147028,68014.0,68013.0,0.21028889]
[1730074116355,0.21984948,68027.0,68014.0,0.0797]
[1730074116605,0.14960372,68052.0,68014.0,0.0797]
[1730074116606,0.21984948,68026.0,68025.0,0.1952]
[1730074116857,0.001646,68033.0,68029.0,0.146996]
[1730074117114,0.001646,68033.0,68032.0,0.337089]
[1730074117565,0.51475988,68047.0,68037.0,0.0663]
[1730074117566,0.146968,68042.0,68037.0,0.0663]
[1730074117795,0.51475988,68047.0,68037.0,0.0663]
[1730074117796,0.21984948,68038.0,68037.0,0.21621726]
[1730074118051,0.146967,68043.0,68037.0,0.34616368]
[1730074118284,0.293927,68044.0,68042.0,0.13288568]
[1730074118540,0.0009944,68047.0,68042.0,0.13288568]
[1730074118785,0.293905,68050.0,68046.0,0.13288568]
[1730074119018,0.146951,68050.0,68046.0,0.13288568]
[1730074119247,0.146948,68051.0,68046.0,0.13288568]
[1730074119504,0.001646,68054.0,68050.0,0.13288568]
[1730074119972,0.001646,68054.0,68052.0,0.146946]
[1730074120213,0.001646,68054.0,68051.0,0.228048]
[1730074120444,0.001646,68054.0,68052.0,0.16471761]
[1730074120676,0.001646,68054.0,68052.0,0.16471752]
[1730074120913,0.001646,68054.0,68052.0,0.16177904]
[1730074124234,0.148588,68054.0,68052.0,0.01483304]
[1730074124679,0.001646,68054.0,68052.0,0.01483304]
[1730074125517,0.14859,68053.0,68052.0,0.01483304]
[1730074125970,0.14859,68053.0,68052.0,0.14771872]
[1730074127222,0.14859,68053.0,68052.0,0.01483304]
[1730074128311,0.146946,68052.0,68051.0,0.0811]
[1730074128732,0.146946,68052.0,68051.0,0.09889121]
[1730074129638,0.146946,68052.0,68051.0,0.01779121]
[1730074130080,0.146946,68052.0,68047.0,0.005]
[1730074130081,0.146955,68048.0,68047.0,0.005]
[1730074131000,0.295536,68053.0,68047.0,0.005]
[1730074131224,0.293898,68051.0,68050.0,0.13288568]
[1730074131464,0.440846,68051.0,68050.0,0.13288568]
[1730074131888,0.146948,68051.0,68050.0,0.13288568]
[1730074133608,0.146959,68046.0,68045.0,0.13788568]
[1730074133855,0.293892,68052.0,68047.0,0.005]
[1730074134038,0.146957,68048.0,68047.0,0.005]
[1730074134243,0.293897,68051.0,68046.0,0.005]
[1730074134459,0.146957,68047.0,68046.0,0.005]
[1730074134689,0.293901,68050.0,68044.0,0.1962]
[1730074134690,0.146954,68049.0,68047.0,0.005]
[1730074135657,0.146955,68048.0,68047.0,0.005]
[1730074136652,0.29391,68048.0,68046.0,0.005]
[1730074136952,0.146957,68047.0,68046.0,0.005]
[1730074137180,0.146961,68045.0,68044.0,0.0832]
[1730074139223,0.146961,68045.0,68044.0,0.0782]
[1730074140722,0.146961,68045.0,68044.0,0.0832]
[1730074140920,0.29391,68048.0,68045.0,0.005]
[1730074141130,0.146959,68046.0,68045.0,0.005]
[1730074142578,0.29391,68048.0,68044.0,0.0782]
[1730074142795,0.146961,68045.0,68044.0,0.0832]
[1730074142994,0.146961,68045.0,68044.0,0.0782]
[1730074143420,0.29391,68048.0,68045.0,0.005]
[1730074143618,0.146959,68046.0,68045.0,0.005]
[1730074144465,0.146959,68046.0,68044.0,0.0782]
[1730074145121,0.146961,68045.0,68044.0,0.0832]
[1730074147153,0.146961,68045.0,68044.0,0.0782]
[1730074147512,0.146963,68044.0,68043.0,0.005]
[1730074147724,0.146963,68044.0,68041.0,0.005]
[1730074148328,0.146961,68046.0,68045.0,0.005]
[1730074149330,0.146959,68046.0,68045.0,0.005]
[1730074150352,0.146959,68046.0,68045.0,0.02280636]
[1730074150558,0.293909,68049.0,68045.0,0.005]
[1730074150765,0.440865,68048.0,68045.0,0.02280636]
[1730074150972,0.29391,68048.0,68045.0,0.005]
[1730074151172,0.29391,68048.0,68046.0,0.01780113]
[1730074151612,0.001646,68053.0,68046.0,0.01780113]
[1730074151805,0.15214981,68053.0,68046.0,0.01780113]
[1730074152005,0.293897,68051.0,68046.0,0.01780113]
[1730074152620,0.146957,68047.0,68046.0,0.01780113]
[1730074152879,0.146955,68048.0,68046.0,0.01780113]
[1730074153085,0.001646,68053.0,68048.0,0.1878]
[1730074153298,0.001646,68053.0,68052.0,0.27983168]
[1730074153724,0.001646,68053.0,68052.0,0.29760091]
[1730074153938,0.14859,68053.0,68052.0,0.01776923]
[1730074154383,0.14859,68053.0,68043.0,0.0769]
[1730074154384,0.146961,68045.0,68043.0,0.0769]
[1730074154590,0.146961,68045.0,68044.0,0.02945]
[1730074154591,0.146963,68045.0,68044.0,0.02945]
[1730074155528,0.146963,68045.0,68038.0,0.005]
[1730074155529,0.293927,68044.0,68039.0,0.02945]
[1730074155751,0.146972,68040.0,68039.0,0.02945]
[1730074156196,0.293923,68045.0,68038.0,0.151974]
[1730074156428,0.293923,68045.0,68040.0,0.005]
[1730074156429,0.146968,68042.0,68040.0,0.005]
[1730074156646,0.146968,68042.0,68039.0,0.005]
[1730074156891,0.146968,68042.0,68040.0,0.005]
[1730074157365,0.146968,68042.0,68039.0,0.005]
[1730074157775,0.146972,68040.0,68037.0,0.0762]
[1730074158196,0.31984948,68051.0,68033.0,0.000823]
[1730074158399,0.146975,68039.0,68036.0,0.146979]
[1730074158733,0.1,68046.0,68033.0,0.147809]
[1730074158900,0.293951,68039.0,68033.0,0.147809]
[1730074159101,0.14698,68037.0,68033.0,0.147809]
[1730074159314,0.293951,68039.0,68033.0,0.147809]
[1730074159514,0.146977,68038.0,68034.0,0.146984]
[1730074159980,0.1,68048.0,68033.0,0.000823]
[1730074159981,0.21984948,68041.0,68033.0,0.000823]
[1730074160220,0.146985,68034.0,68033.0,0.000823]
[1730074161041,0.146985,68034.0,68033.0,0.441783]
[1730074161256,0.146985,68034.0,68033.0,0.45965692]
[1730074164440,0.1,68038.0,68033.0,0.45965692]
[1730074164646,0.293957,68037.0,68033.0,0.45965692]
[1730074164859,0.1,68038.0,68033.0,0.45965692]
[1730074165102,0.30881135,68051.0,68041.0,0.14697]
[1730074165103,0.1,68047.0,68041.0,0.14697]
[1730074165319,0.1,68047.0,68041.0,0.60572244]
[1730074165746,0.246957,68047.0,68041.0,0.60572244]
[1730074166194,0.1,68048.0,68041.0,0.60572244]
[1730074166730,0.1,68045.0,68041.0,0.60572244]
[1730074167157,0.246962,68045.0,68041.0,0.60572244]
[1730074167372,0.1,68045.0,68041.0,0.45875244]
[1730074167598,0.246962,68045.0,68041.0,0.60572244]
[1730074167804,0.146964,68044.0,68041.0,0.60572244]
[1730074168456,0.146964,68044.0,68041.0,0.45875244]
[1730074168869,0.246958,68047.0,68041.0,0.60572244]
[1730074169126,0.1,68045.0,68041.0,0.45875244]
[1730074169310,0.293919,68046.0,68041.0,0.45875244]
[1730074169311,0.146965,68044.0,68041.0,0.45875244]
[1730074169938,0.293919,68046.0,68041.0,0.45875244]
[1730074169939,0.146966,68043.0,68041.0,0.45875244]
[1730074170375,0.146964,68044.0,68041.0,0.60572244]
[1730074170580,0.146966,68043.0,68041.0,0.45875244]
[1730074171207,0.146962,68045.0,68041.0,0.45875244]
[1730074171440,0.1,68044.0,68041.0,0.60572244]
[1730074171686,0.1,68044.0,68041.0,0.45875244]
[1730074171894,0.146967,68043.0,68041.0,0.45875244]
[1730074172107,0.1,68044.0,68041.0,0.60572244]
[1730074172946,0.1,68046.0,68041.0,0.60572244]
[1730074173158,0.1,68044.0,68041.0,0.60572244]
[1730074173368,0.293918,68047.0,68041.0,0.45875244]
[1730074173584,0.146963,68044.0,68041.0,0.45875244]
[1730074173807,0.146962,68045.0,68041.0,0.45875244]
[1730074174041,0.146966,68043.0,68041.0,0.45875244]
[1730074174267,0.293918,68047.0,68041.0,0.45875244]
[1730074174507,0.146957,68047.0,68041.0,0.60572244]
[1730074174735,0.393913,68048.0,68041.0,0.60572244]
[1730074174944,0.1,68048.0,68041.0,0.45875244]
[1730074175160,0.14696,68046.0,68041.0,0.45875244]
[1730074175678,0.14696,68046.0,68041.0,0.60572244]
[1730074175903,0.14696,68046.0,68041.0,0.45875244]
[1730074176340,0.146961,68045.0,68041.0,0.45875244]
[1730074176550,0.393912,68048.0,68041.0,0.45875244]
[1730074177199,0.14696,68046.0,68041.0,0.45875244]
[1730074177603,0.393912,68048.0,68041.0,0.45875244]
[1730074177825,0.146965,68043.0,68041.0,0.45875244]
[1730074178748,0.293922,68046.0,68041.0,0.45875244]
[1730074178749,0.146963,68044.0,68041.0,0.45875244]
[1730074179205,0.293922,68046.0,68041.0,0.45875244]
[1730074179206,0.14696,68046.0,68041.0,0.45875244]
[1730074179420,0.146964,68044.0,68041.0,0.45875244]
[1730074180680,0.146965,68044.0,68041.0,0.45875244]
[1730074180899,0.39391,68048.0,68041.0,0.45875244]
[1730074181112,0.146962,68045.0,68041.0,0.45875244]
[1730074181364,0.1,68048.0,68041.0,0.60572244]
[1730074181579,0.0009801,68051.0,68041.0,0.83552244]
[1730074181580,0.1009801,68051.0,68041.0,0.83552244]
[1730074182459,0.1009801,68051.0,68041.0,0.8401211]
[1730074182879,0.1009801,68051.0,68041.0,0.8301211]
[1730074183119,0.1009801,68051.0,68041.0,0.8401211]
[1730074183413,0.0009801,68051.0,68041.0,0.99062491]
[1730074184752,0.0009801,68051.0,68041.0,1.02007491]
[1730074185411,0.0009801,68051.0,68041.0,0.7176011]
[1730074185647,0.0770801,68051.0,68041.0,0.46375244]
[1730074185862,0.14696,68046.0,68041.0,0.46375244]
[1730074186059,0.146967,68043.0,68041.0,0.46375244]
[1730074186266,0.146963,68045.0,68041.0,0.46375244]
[1730074186468,0.146965,68044.0,68041.0,0.46375244]
[1730074186891,0.146966,68043.0,68041.0,0.46375244]
[1730074187314,0.21984948,68045.0,68041.0,0.45875244]
[1730074187521,0.293922,68046.0,68041.0,0.45875244]
[1730074187522,0.148614,68042.0,68041.0,0.45875244]
[1730074187935,0.001646,68042.0,68041.0,0.46375244]
[1730074189926,0.148614,68042.0,68041.0,0.46375244]
[1730074190157,0.148614,68042.0,68041.0,0.45875244]
[1730074191520,0.227714,68042.0,68041.0,0.45875244]
[1730074191730,0.327714,68042.0,68041.0,0.44091]
[1730074191948,0.327714,68042.0,68041.0,0.45602205]
[1730074205992,0.47821781,68042.0,68041.0,0.45602205]
[1730074206910,0.47821781,68042.0,68041.0,0.44091]
[1730074207324,0.47821781,68042.0,68041.0,0.45602863]
[1730074208395,0.60794327,68042.0,68041.0,0.45602863]
[1730074208814,0.65176109,68042.0,68041.0,0.44091]
[1730074209328,0.65176109,68042.0,68041.0,0.45602863]
[1730074210634,0.60794327,68042.0,68041.0,0.45602863]
[1730074211933,0.75582895,68042.0,68041.0,0.42663463]
[1730074212137,0.75582895,68042.0,68041.0,0.382122]
[1730074212360,0.62494327,68042.0,68041.0,0.382122]
[1730074212800,0.62294327,68042.0,68041.0,0.382122]
[1730074214567,0.73232964,68042.0,68041.0,0.382122]
[1730074214772,0.62294327,68042.0,68041.0,0.382122]
[1730074216555,0.71138943,68042.0,68041.0,0.382122]
[1730074217404,0.71241034,68042.0,68041.0,0.382122]
[1730074217830,0.86291415,68042.0,68041.0,0.382122]
[1730074218273,0.86491415,68042.0,68041.0,0.382122]
[1730074218480,0.62494327,68042.0,68041.0,0.382122]
[1730074219243,0.62694327,68042.0,68041.0,0.382122]
[1730074220644,0.62494327,68042.0,68041.0,0.382122]
[1730074220930,0.69051659,68042.0,68041.0,0.382122]
[1730074221344,0.69051541,68042.0,68041.0,0.382122]
[1730074222089,0.62494327,68042.0,68041.0,0.382122]
[1730074222517,0.71235904,68042.0,68041.0,0.382122]
[1730074222956,0.84764595,68042.0,68041.0,0.382122]
[1730074223177,0.84964595,68042.0,68041.0,0.382122]
[1730074223432,0.98253163,68042.0,68041.0,0.382122]
[1730074223646,0.84964595,68042.0,68041.0,0.382122]
[1730074224763,0.76223018,68042.0,68041.0,0.382122]
[1730074224970,0.76223018,68042.0,68041.0,0.235152]
[1730074224971,0.89511586,68042.0,68041.0,0.235152]
[1730074225594,0.707785,68034.0,68033.0,0.000823]
[1730074225831,0.99117449,68034.0,68033.0,0.000823]
[1730074226463,1.21102397,68034.0,68033.0,1e-06]
[1730074226667,0.99117449,68034.0,68033.0,1e-06]
[1730074227085,1.03487379,68034.0,68033.0,1e-06]
[1730074227309,0.98917449,68034.0,68033.0,1e-06]
[1730074227525,1.03287427,68034.0,68033.0,1e-06]
[1730074227736,1.18337808,68034.0,68033.0,1e-06]
[1730074228983,1.03287427,68034.0,68033.0,0.001001]
[1730074229338,1.04396298,68034.0,68033.0,0.001001]
[1730074229540,1.04396298,68034.0,68033.0,1e-06]
[1730074229541,1.05096298,68034.0,68033.0,1e-06]
[1730074229862,1.05796298,68034.0,68033.0,1e-06]
[1730074230067,1.05996298,68034.0,68033.0,1e-06]
[1730074230272,1.21046679,68034.0,68033.0,1e-06]
[1730074230848,1.16676701,68034.0,68033.0,1e-06]
[1730074231309,1.21046679,68034.0,68033.0,1e-06]
[1730074231518,1.16676701,68034.0,68033.0,1e-06]
[1730074231751,1.21047962,68034.0,68033.0,1e-06]
[1730074232595,1.05797581,68034.0,68033.0,1e-06]
[1730074233033,1.0142632,68034.0,68033.0,1e-06]
[1730074233281,1.05797581,68034.0,68033.0,1e-06]
[1730074234142,1.0142632,68034.0,68033.0,1e-06]
[1730074235074,0.67257752,68034.0,68033.0,1e-06]
[1730074235487,0.67757752,68034.0,68033.0,1e-06]
[1730074235700,0.32257752,68034.0,68033.0,0.078201]
[1730074235922,0.30857752,68034.0,68033.0,0.078201]
[1730074236703,0.29748881,68034.0,68033.0,0.078201]
[1730074237145,0.39748881,68034.0,68033.0,0.079201]
[1730074238758,0.39748881,68034.0,68033.0,0.078201]
[1730074238982,0.1,68036.0,68034.0,0.0825]
[1730074239208,0.146983,68035.0,68034.0,0.0825]
[1730074239935,0.14698,68037.0,68034.0,0.0825]
[1730074240163,0.146983,68035.0,68034.0,0.08543939]
[1730074240396,0.146983,68035.0,68034.0,0.10921011]
[1730074240587,0.246983,68035.0,68034.0,0.10921011]
[1730074240830,0.246983,68035.0,68034.0,0.1929]
[1730074241284,0.246983,68035.0,68034.0,0.21961011]
[1730074241496,0.1,68035.0,68034.0,0.21961011]
[1730074241708,0.246983,68035.0,68034.0,0.21961011]
[1730074241934,0.1,68036.0,68034.0,0.21961011]
[1730074242153,0.246982,68036.0,68035.0,0.0765]
[1730074242622,0.293945,68040.0,68035.0,0.0765]
[1730074242623,0.146973,68040.0,68036.0,0.22348]
[1730074242852,0.001646,68042.0,68039.0,0.41274536]
[1730074243085,0.001646,68042.0,68041.0,0.186]
[1730074243327,0.001646,68042.0,68041.0,0.3359089]
[1730074243554,0.001646,68042.0,68041.0,0.39960901]
[1730074243819,0.001646,68042.0,68041.0,0.39760901]
[1730074248406,0.001646,68042.0,68041.0,0.39960901]
[1730074248868,0.001646,68042.0,68041.0,0.39760901]
[1730074250614,0.001646,68042.0,68041.0,0.39960901]
[1730074250816,0.001646,68042.0,68041.0,0.39760901]
[1730074259669,0.001646,68042.0,68041.0,0.83851901]
[1730074261371,0.001646,68042.0,68041.0,0.84051901]
[1730074261596,0.001646,68042.0,68041.0,0.83851901]
[1730074262626,0.001646,68042.0,68041.0,0.84051901]
[1730074263983,0.001646,68042.0,68041.0,0.84311767]
[1730074264414,0.001646,68042.0,68041.0,0.84311765]
[1730074264627,0.001646,68042.0,68041.0,0.84511765]
[1730074264831,0.001646,68042.0,68041.0,0.84051901]
[1730074265049,0.001646,68042.0,68041.0,0.83851901]
[1730074265520,0.001646,68042.0,68041.0,0.84311768]
[1730074266614,0.001646,68042.0,68041.0,0.84511768]
[1730074266817,0.001646,68042.0,68041.0,0.84311768]
[1730074270548,0.001646,68042.0,68041.0,0.93466561]
[1730074272619,0.001646,68042.0,68041.0,1.08716942]
[1730074273010,0.001646,68042.0,68041.0,1.08716935]
[1730074273441,0.0009801,68051.0,68050.0,0.15195]
[1730074273636,0.0009801,68051.0,68050.0,1.06565034]
[1730074273849,0.001646,68053.0,68052.0,0.163946]
[1730074274052,0.001646,68053.0,68052.0,0.95053634]
[1730074274464,0.001646,68053.0,68052.0,0.88537127]
[1730074274634,0.001646,68053.0,68052.0,1.0201644]
[1730074280532,0.001646,68053.0,68052.0,1.02016335]
[1730074281933,0.001646,68053.0,68052.0,1.01816335]
[1730074282149,0.001646,68053.0,68052.0,1.02016335]
[1730074282378,0.001646,68053.0,68052.0,1.01816335]
[1730074282595,0.001646,68053.0,68052.0,1.02016335]
[1730074284209,0.001646,68053.0,68052.0,1.02016334]
[1730074286784,0.0009848,68064.0,68063.0,0.151922]
[1730074287060,0.0009848,68064.0,68063.0,0.55315435]
[1730074287272,0.21984948,68067.0,68066.0,0.186916]
[1730074287486,0.000994,68077.0,68072.0,0.146903]
[1730074287712,0.000994,68077.0,68070.0,0.298813]
[1730074287713,0.000994,68077.0,68074.0,0.13279313]
[1730074287919,0.21984948,68082.0,68074.0,0.57349313]
[1730074287920,0.001646,68075.0,68074.0,0.57349313]
[1730074288151,0.001646,68075.0,68074.0,0.74679854]
[1730074288389,0.001646,68075.0,68074.0,0.77479854]
[1730074291037,0.001646,68075.0,68074.0,0.77679854]
[1730074291252,0.001646,68075.0,68074.0,0.92730235]
[1730074291469,0.001646,68075.0,68074.0,1.07469181]
[1730074292110,0.001646,68075.0,68074.0,0.94189868]
[1730074292740,0.001646,68075.0,68074.0,1.29454129]
[1730074292966,0.001646,68075.0,68074.0,1.15529181]
[1730074294759,0.001646,68075.0,68074.0,1.18475181]
[1730074295429,0.001646,68085.0,68084.0,0.40067013]
[1730074295658,0.001646,68085.0,68084.0,1.01801677]
[1730074295873,0.001646,68085.0,68084.0,1.02001677]
[1730074299616,0.001646,68085.0,68084.0,1.01801677]
[1730074301764,0.001646,68085.0,68084.0,1.02261243]
[1730074301977,0.001646,68085.0,68084.0,1.01801677]
[1730074302398,0.001646,68085.0,68084.0,1.04947677]
[1730074303643,0.001646,68085.0,68084.0,1.04747677]
[1730074304294,0.001646,68085.0,68084.0,1.04947677]
[1730074304506,0.001646,68085.0,68084.0,1.00810553]
[1730074305183,0.001646,68085.0,68084.0,1.11190553]
[1730074305631,0.85047322,68086.0,68084.0,1.11190553]
[1730074305632,0.34330005,68086.0,68085.0,0.295135]
[1730074305855,0.34330005,68086.0,68085.0,1.0829907]
[1730074306072,0.34330005,68086.0,68085.0,1.14858501]
[1730074306293,0.34330005,68086.0,68085.0,1.24858501]
[1730074306574,0.34330005,68086.0,68085.0,1.20914294]
[1730074306796,0.12319405,68086.0,68085.0,1.30056483]
[1730074307023,0.12319405,68086.0,68085.0,1.21373735]
[1730074308077,0.12319405,68086.0,68085.0,1.21373715]
[1730074308286,0.21984948,68097.0,68096.0,0.377911]
[1730074308494,0.21984948,68097.0,68096.0,1.26175797]
[1730074308692,0.001646,68099.0,68098.0,0.06946]
[1730074308905,0.001646,68099.0,68098.0,0.81194501]
[1730074309114,0.001646,68099.0,68098.0,0.83798127]
[1730074311755,0.00162,68104.0,68103.0,0.31943548]
[1730074311973,0.00162,68104.0,68103.0,0.91044929]
[1730074312196,0.00162,68104.0,68103.0,1.02353551]
[1730074313679,0.00162,68104.0,68103.0,1.05299551]
[1730074314109,0.30093438,68119.0,68103.0,1.05299551]
[1730074314110,0.22083438,68119.0,68108.0,0.186825]
[1730074314348,0.22083438,68119.0,68108.0,0.91500249]
[1730074314589,0.22083438,68119.0,68108.0,0.94090194]
[1730074314814,0.0009849,68119.0,68108.0,0.94090194]
[1730074315042,0.21984948,68118.0,68108.0,1.02180194]
[1730074315268,0.21984948,68118.0,68108.0,0.94090194]
[1730074315938,0.21984948,68118.0,68108.0,0.76539813]
[1730074316149,0.0763,68110.0,68108.0,0.61857313]
[1730074316363,0.0763,68110.0,68108.0,0.76539813]
[1730074316571,0.0763,68110.0,68108.0,0.63279865]
[1730074318979,0.0763,68110.0,68108.0,0.63279858]
[1730074319129,0.0763,68110.0,68108.0,0.6401492]
[1730074319372,0.0763,68110.0,68108.0,0.4783242]
[1730074319550,0.0763,68110.0,68108.0,0.47097358]
[1730074319769,0.223122,68110.0,68108.0,0.47097358]
[1730074319947,0.0763,68110.0,68108.0,0.47097358]
[1730074321496,0.0763,68110.0,68108.0,0.47137945]
[1730074321704,0.0763,68110.0,68108.0,0.47597411]
[1730074322135,0.0763,68110.0,68108.0,0.47097411]
[1730074322301,0.0763,68110.0,68108.0,0.47597411]
[1730074322922,0.0763,68110.0,68108.0,0.48332558]
[1730074323336,0.0763,68110.0,68108.0,0.63015058]
[1730074323816,0.0763,68110.0,68108.0,0.48332558]
[1730074324622,0.110964,68111.0,68108.0,0.63015058]
[1730074324834,0.001664,68111.0,68108.0,0.66461058]
[1730074325119,0.001664,68111.0,68108.0,0.67566445]
[1730074325361,0.001664,68111.0,68108.0,0.84311289]
[1730074325842,0.001664,68111.0,68108.0,0.84511289]
[1730074326045,0.001664,68111.0,68108.0,0.84311289]
[1730074327729,0.001664,68111.0,68108.0,0.65460908]
[1730074328159,0.001664,68111.0,68108.0,0.50778408]
[1730074328333,0.001664,68111.0,68108.0,0.50043354]
[1730074328489,0.001664,68111.0,68108.0,0.64725854]
[1730074328702,0.001664,68111.0,68108.0,0.50043375]
[1730074329122,0.001664,68111.0,68108.0,0.64725875]
[1730074329544,0.001664,68111.0,68108.0,0.61779875]
[1730074332761,0.001664,68111.0,68108.0,0.61320445]
[1730074332963,0.001664,68111.0,68108.0,0.61779878]
[1730074339706,0.001664,68111.0,68108.0,0.64725878]
[1730074340331,0.001664,68111.0,68108.0,0.50043378]
[1730074340535,0.148484,68111.0,68108.0,0.50043378]
[1730074341172,0.58894,68111.0,68108.0,0.47097378]
[1730074341384,0.329287,68109.0,68108.0,0.47097378]
[1730074341590,0.329287,68109.0,68108.0,0.46637945]
[1730074342213,0.182464,68109.0,68108.0,0.46637945]
[1730074342538,0.329287,68109.0,68108.0,0.46637945]
[1730074343151,0.182464,68109.0,68108.0,0.46637945]
[1730074343361,0.329287,68109.0,68108.0,0.46637945]
[1730074343955,0.182464,68109.0,68108.0,0.46637945]
[1730074344162,0.329287,68109.0,68108.0,0.46637945]
[1730074345766,0.182464,68109.0,68108.0,0.46637945]
[1730074345972,0.001664,68109.0,68108.0,0.61820445]
[1730074346191,0.001664,68109.0,68108.0,0.65225907]
[1730074346396,0.001664,68109.0,68108.0,0.82576288]
[1730074348241,0.001664,68109.0,68108.0,0.64725907]
[1730074348489,0.001664,68109.0,68108.0,0.50043407]
[1730074348490,0.207364,68109.0,68108.0,0.50043407]
[1730074348698,0.354187,68109.0,68108.0,0.49583945]
[1730074349864,0.354187,68109.0,68108.0,0.46637945]
[1730074350536,0.50469081,68109.0,68108.0,0.46637945]
[1730074352111,0.60469081,68109.0,68108.0,0.46637945]
[1730074352598,0.64854533,68109.0,68108.0,0.46637945]
[1730074352819,0.6486188,68109.0,68108.0,0.46637945]
[1730074353650,0.60469081,68109.0,68108.0,0.46637945]
[1730074355377,0.6486188,68109.0,68108.0,0.46637945]
[1730074355580,0.60469081,68109.0,68108.0,0.46637945]
[1730074358227,0.85469081,68109.0,68108.0,0.46637945]
[1730074358448,0.90356896,68109.0,68108.0,0.46637945]
[1730074358660,0.90356533,68109.0,68108.0,0.44048]
[1730074358878,0.85969081,68109.0,68108.0,0.44048]
[1730074359089,0.90357329,68109.0,68108.0,0.46218506]
[1730074362092,1.03617277,68109.0,68108.0,0.46218506]
[1730074362514,0.99229029,68109.0,68108.0,0.46218506]
[1730074363897,1.03617277,68109.0,68108.0,0.46218506]